fUSD/lending_fUSD_20240804
["ID","MTS","AMOUNT","RATE_DAILY","PERIOD"]
[334143426,1722793877010,-389.36,0.00023178,9]
[334143427,1722793877023,-500.0,0.00023178,9]
[334143428,1722793877036,-500.0,0.00023178,9]
[334143429,1722793877049,-500.0,0.00023178,9]
[334143430,1722793877060,-500.0,0.00023178,9]
[334143431,1722793877070,-744.5,0.00023178,9]
[334143432,1722793877079,-500.0,0.00023178,9]
[334143433,1722793877088,-584.7,0.00023178,9]
[334143434,1722793877099,-285.12,0.00023178,9]
[334143435,1722793877108,-500.0,0.00023178,9]
[334143436,1722793877118,-500.0,0.00023178,9]
[334143437,1722793877127,-500.0,0.00023178,9]
[334143438,1722793877137,-500.0,0.00023178,9]
[334143439,1722793877147,-500.0,0.00023178,9]
[334143440,1722793877156,-500.0,0.00023178,9]
[334143441,1722793877166,-500.0,0.00023178,9]
[334143442,1722793877175,-500.0,0.00023178,9]
[334143443,1722793877185,-500.0,0.00023178,9]
[334143444,1722793877194,-500.0,0.00023178,9]
[334143445,1722793877204,-580.5,0.00023178,9]
[334143446,1722793877213,-500.0,0.00023178,9]
[334143447,1722793877223,-500.0,0.00023178,9]
[334143448,1722793877233,-557.77,0.00023178,9]
[334143449,1722793877242,-500.0,0.00023178,9]
[334143450,1722793877252,-500.0,0.00023178,9]
[334143451,1722793877266,-347.4,0.00023178,9]
[334143452,1722793877277,-500.0,0.00023178,9]
[334143453,1722793877286,-500.0,0.00023178,9]
[334143454,1722793877296,-500.0,0.00023178,9]
[334143455,1722793877305,-500.0,0.00023178,9]
[334143456,1722793877316,-500.0,0.00023178,9]
[334143457,1722793877326,-500.0,0.00023178,9]
[334143458,1722793877336,-500.0,0.00023178,9]
[334143459,1722793877346,-500.0,0.00023178,9]
[334143460,1722793877356,-500.0,0.00023178,9]
[334143461,1722793877366,-500.0,0.00023178,9]
[334143462,1722793877376,-500.0,0.00023178,9]
[334143463,1722793877385,-500.0,0.00023178,9]
[334143464,1722793877395,-500.0,0.00023178,9]
[334143465,1722793877405,-500.0,0.00023178,9]
[334143466,1722793877415,-1142.38,0.00023178,9]
[334143467,1722793877424,-500.0,0.00023178,9]
[334143468,1722793877434,-500.0,0.00023178,9]
[334143469,1722793877443,-500.0,0.00023178,9]
[334143470,1722793877454,-500.0,0.00023178,9]
[334143471,1722793877465,-501.03,0.00023178,9]
[334143472,1722793877474,-500.0,0.00023178,9]
[334143473,1722793877484,-500.0,0.00023178,9]
[334143474,1722793877495,-500.0,0.00023178,9]
[334143475,1722793877504,-500.0,0.00023178,9]
[334143476,1722793877516,-569.8,0.00023178,9]
[334143477,1722793877525,-500.0,0.00023178,9]
[334143478,1722793877535,-500.0,0.00023178,9]
[334143479,1722793877546,-151.0,0.00023178,7]
[334143480,1722793877556,-601.76,0.00023178,9]
[334143481,1722793877566,-500.0,0.00023178,9]
[334143482,1722793877575,-500.0,0.00023178,9]
[334143483,1722793877584,-500.0,0.00023178,9]
[334143484,1722793877595,-500.0,0.00023178,9]
[334143485,1722793877604,-500.0,0.00023178,9]
[334143486,1722793877613,-332.5,0.00023178,9]
[334143487,1722793877623,-500.0,0.00023178,9]
[334143488,1722793877632,-233.86,0.00023178,9]
[334143489,1722793877642,-500.0,0.00023178,9]
[334143490,1722793877652,-500.0,0.00023178,9]
[334143491,1722793877662,-500.0,0.00023178,9]
[334143492,1722793877671,-500.0,0.00023178,9]
[334143493,1722793877681,-500.0,0.00023178,9]
[334143494,1722793877691,-500.0,0.00023178,9]
[334143495,1722793877701,-500.0,0.00023178,9]
[334143496,1722793877711,-506.64930288,0.00023178,9]
[334143497,1722793877720,-524.1,0.00023178,9]
[334143498,1722793877731,-500.0,0.00023178,9]
[334143499,1722793877746,-500.0,0.00023178,9]
[334143500,1722793877758,-517.06,0.00023178,9]
[334143501,1722793877767,-500.0,0.00023178,9]
[334143502,1722793877777,-500.0,0.00023178,9]
[334143503,1722793877786,-500.0,0.00023178,9]
[334143504,1722793877795,-551.04,0.00023178,9]
[334143505,1722793877805,-500.0,0.00023178,9]
[334143506,1722793877816,-500.0,0.00023178,9]
[334143507,1722793877826,-500.0,0.00023178,9]
[334143508,1722793877835,-500.0,0.00023178,9]
[334143509,1722793877845,-500.0,0.00023178,9]
[334143510,1722793877855,-500.0,0.00023178,9]
[334143511,1722793877864,-500.0,0.00023178,9]
[334143512,1722793877873,-500.0,0.00023178,9]
[334143513,1722793877883,-500.0,0.00023178,9]
[334143514,1722793878474,-500.0,0.00023178,9]
[334143515,1722793878492,-500.0,0.00023178,9]
[334143516,1722793878516,-500.0,0.00023178,9]
[334143517,1722793878531,-3137.22,0.00023178,9]
[334143518,1722793878550,-500.0,0.00023178,9]
[334143519,1722793878571,-500.0,0.00023178,9]
[334143520,1722793878583,-500.0,0.00023178,9]
[334143521,1722793878593,-519.82,0.00023178,9]
[334143522,1722793878604,-523.15,0.00023178,9]
[334143523,1722793878614,-441.00138942,0.00023178,9]
[334143524,1722793878624,-500.0,0.00023178,9]
[334143525,1722793878635,-500.0,0.00023178,9]
[334143526,1722793878646,-500.0,0.00023178,9]
[334143527,1722793878656,-501.48308152,0.00023178,9]
[334143528,1722793878666,-934.82,0.00023178,9]
[334143529,1722793878677,-500.0,0.00023178,9]
[334143530,1722793878687,-710.9,0.00023178,9]
[334143531,1722793878696,-500.0,0.00023178,9]
[334143532,1722793878705,-501.32702124,0.00023178,9]
[334143533,1722793878715,-740.84,0.00023178,9]
[334143534,1722793878730,-1014.74,0.00023178,9]
[334143535,1722793878741,-422.41,0.00023178,9]
[334143536,1722793878752,-500.0,0.00023178,9]
[334143537,1722793878768,-869.51,0.00023178,9]
[334143538,1722793878778,-555.04,0.00023178,9]
[334143539,1722793878788,-1220.26,0.00023178,9]
[334143540,1722793878799,-570.4,0.00023178,9]
[334143541,1722793878810,-747.45,0.00023178,9]
[334143542,1722793878821,-500.0,0.00023178,9]
[334143543,1722793878831,-501.2948095,0.00023178,9]
[334143544,1722793878841,-500.0,0.00023178,9]
[334143545,1722793878851,-500.0,0.00023178,9]
[334143546,1722793878862,-1426.35,0.00023178,9]
[334143547,1722793878873,-500.0,0.00023178,9]
[334143548,1722793878883,-500.36121227,0.00023178,9]
[334143549,1722793878894,-797.06,0.00023178,9]
[334143550,1722793878907,-531.23,0.00023178,9]
[334143551,1722793878919,-500.0,0.00023178,9]
[334143552,1722793878930,-790.91,0.00023178,9]
[334143553,1722793878943,-577.2,0.00023178,9]
[334143554,1722793878954,-1995.81,0.00023178,9]
[334143555,1722793878964,-2161.39,0.00023178,9]
[334143556,1722793878974,-500.0,0.00023178,9]
[334143557,1722793878985,-151.0,0.00023178,7]
[334143558,1722793878994,-151.0,0.00023178,7]
[334143559,1722793879005,-500.0,0.00023178,9]
[334143560,1722793879022,-500.0,0.00023178,9]
[334143561,1722793879033,-332.34335069,0.00023178,9]
[334143562,1722793879047,-1425.17,0.00023178,9]
[334143563,1722793879057,-500.0,0.00023178,9]
[334143564,1722793879067,-669.39704,0.00023178,7]
[334143565,1722793879077,-669.39704,0.00023178,7]
[334143566,1722793879087,-883.25,0.00023178,9]
[334143567,1722793879097,-913.58,0.00023178,9]
[334143568,1722793879107,-500.0,0.00023178,9]
[334143569,1722793879118,-1374.85,0.00023178,9]
[334143570,1722793879127,-591.67,0.00023178,9]
[334143571,1722793879137,-669.39704,0.00023178,7]
[334143572,1722793879148,-669.39704,0.00023178,7]
[334143573,1722793879158,-500.0,0.00023178,9]
[334143574,1722793879168,-544.21,0.00023178,9]
[334143575,1722793879178,-3151.84,0.00023178,9]
[334143576,1722793879188,-500.0,0.00023178,9]
[334143577,1722793879198,-500.0,0.00023178,9]
[334143578,1722793879209,-552.86,0.00023178,9]
[334143579,1722793879219,-500.0,0.00023178,9]
[334143580,1722793879229,-500.0,0.00023178,9]
[334143581,1722793879238,-815.35,0.00023178,9]
[334143582,1722793879248,-1150.48,0.00023178,9]
[334143583,1722793879266,-500.0,0.00023178,9]
[334143584,1722793879277,-805.83,0.00023178,9]
[334143585,1722793879287,-500.0,0.00023178,9]
[334143586,1722793879297,-500.0,0.00023178,9]
[334143587,1722793879307,-493.59,0.00023178,9]
[334143588,1722793879317,-500.0,0.00023178,9]
[334143589,1722793879327,-605.95,0.00023178,9]
[334143590,1722793879337,-1085.44,0.00023178,9]
[334143591,1722793879347,-500.0,0.00023178,9]
[334143592,1722793879357,-198.41029935,0.00023178,9]
[334143593,1722793879367,-843.61,0.00023178,9]
[334143594,1722793879377,-500.0,0.00023178,9]
[334143595,1722793879388,-500.0,0.00023178,9]
[334143596,1722793879398,-500.0,0.00023178,9]
[334143597,1722793879408,-500.0,0.00023178,9]
[334143598,1722793879418,-1087.61,0.00023178,9]
[334143599,1722793879428,-9890.12,0.00023178,9]
[334143600,1722793879438,-500.0,0.00023178,9]
[334143601,1722793879448,-500.0,0.00023178,9]
[334143602,1722793879458,-500.0,0.00023178,9]
[334143603,1722793879470,-2686.87,0.00023178,9]
[334143604,1722793879480,-500.0,0.00023178,9]
[334143605,1722793879491,-500.0,0.00023178,9]
[334143606,1722793879501,-943.34,0.00023178,9]
[334143607,1722793879524,-13841.3,0.00023178,9]
[334143608,1722793879535,-400.24,0.00023178,9]
[334143609,1722793879546,-500.0,0.00023178,9]
[334143610,1722793879558,-4946.99,0.00023178,9]
[334143611,1722793879569,-202.46,0.00023178,9]
[334143612,1722793879580,-431.9,0.00023178,9]
[334143613,1722793879591,-184.84,0.00023178,9]
[334143614,1722793879603,-305.38,0.00023178,9]
[334143615,1722793879614,-1685.99,0.00023178,9]
[334143616,1722793879626,-500.0,0.00023178,9]
[334143617,1722793879637,-533.9,0.00023178,9]
[334143618,1722793879647,-500.0,0.00023178,9]
[334143619,1722793879658,-500.0,0.00023178,9]
[334143620,1722793879668,-1139.5,0.00023178,9]
[334143621,1722793879679,-1049.8,0.00023178,9]
[334143622,1722793879690,-2297.65,0.00023178,9]
[334143623,1722793879701,-500.0,0.00023178,9]
[334143624,1722793879711,-151.0,0.00023178,7]
[334143625,1722793879726,-151.0,0.00023178,7]
[334143626,1722793879737,-500.0,0.00023178,9]
[334143627,1722793879747,-521.7,0.00023178,9]
[334143628,1722793879764,-500.0,0.00023178,9]
[334143629,1722793879776,-500.0,0.00023178,9]
[334143630,1722793879786,-923.98,0.00023178,9]
[334143631,1722793879797,-500.0,0.00023178,9]
[334143632,1722793879809,-500.0,0.00023178,9]
[334143633,1722793879820,-500.0,0.00023178,9]
[334143634,1722793879830,-2224.47,0.00023178,9]
[334143635,1722793879840,-500.0,0.00023178,9]
[334143636,1722793879850,-838.61,0.00023178,9]
[334143637,1722793879859,-500.0,0.00023178,9]
[334143638,1722793879869,-709.32,0.00023178,9]
[334143639,1722793879879,-594.66,0.00023178,9]
[334143640,1722793879889,-500.0,0.00023178,9]
[334143641,1722793879900,-210.7368896,0.00023178,9]
[334143642,1722793879910,-4890.24,0.00023178,9]
[334143643,1722793879919,-500.0,0.00023178,9]
[334143644,1722793879929,-272.56373992,0.00023178,9]
[334143645,1722793879939,-500.0,0.00023178,9]
[334143646,1722793879948,-500.0,0.00023178,9]
[334143647,1722793879958,-500.0,0.00023178,9]
[334143648,1722793879967,-3521.04,0.00023178,9]
[334143649,1722793879977,-481.98,0.00023178,9]
[334143650,1722793879986,-500.0,0.00023178,9]
[334143651,1722793879996,-1024.15,0.00023178,9]
[334143652,1722793880005,-500.0,0.00023178,9]
[334143653,1722793880020,-3911.91,0.00023178,9]
[334143654,1722793880029,-500.0,0.00023178,9]
[334143655,1722793880039,-500.0,0.00023178,9]
[334143656,1722793880049,-953.36,0.00023178,9]
[334143657,1722793880058,-500.0,0.00023178,9]
[334143658,1722793880068,-500.0,0.00023178,9]
[334143659,1722793880077,-451.137247,0.00023178,7]
[334143660,1722793880087,-451.137247,0.00023178,7]
[334143661,1722793880096,-500.0,0.00023178,9]
[334143662,1722793880106,-577.32,0.00023178,9]
[334143663,1722793880116,-500.0,0.00023178,9]
[334143664,1722793880126,-675.42,0.00023178,9]
[334143665,1722793880136,-921.33,0.00023178,9]
[334143666,1722793880146,-192.38929696,0.00023178,9]
[334143667,1722793880156,-500.0,0.00023178,9]
[334143668,1722793880166,-451.137247,0.00023178,7]
[334143669,1722793880176,-451.137247,0.00023178,7]
[334143670,1722793880186,-500.0,0.00023178,9]
[334143671,1722793880195,-500.0,0.00023178,9]
[334143672,1722793880205,-1236.09,0.00023178,9]
[334143673,1722793880215,-500.0,0.00023178,9]
[334143674,1722793880224,-710.3,0.00023178,9]
[334143675,1722793880233,-6142.0,0.00023178,9]
[334143676,1722793880242,-500.0,0.00023178,9]
[334143677,1722793880252,-500.0,0.00023178,9]
[334143678,1722793880267,-500.0,0.00023178,9]
[334143679,1722793880276,-2208.74,0.00023178,9]
[334143680,1722793880284,-5250.57,0.00023178,9]
[334143681,1722793880294,-1009.7,0.00023178,9]
[334143682,1722793880303,-500.0,0.00023178,9]
[334143683,1722793880313,-2952.8,0.00023178,9]
[334143684,1722793880323,-500.0,0.00023178,9]
[334143685,1722793880332,-500.0,0.00023178,9]
[334143686,1722793880342,-500.0,0.00023178,9]
[334143687,1722793880351,-500.0,0.00023178,9]
[334143688,1722793880360,-1542.72,0.00023178,9]
[334143689,1722793880370,-523.82,0.00023178,9]
[334143690,1722793880379,-500.0,0.00023178,9]
[334143691,1722793880389,-500.0,0.00023178,9]
[334143692,1722793880397,-865.21,0.00023178,9]
[334143693,1722793880405,-500.0,0.00023178,9]
[334143694,1722793880415,-606.97,0.00023178,9]
[334143695,1722793880425,-500.0,0.00023178,9]
[334143696,1722793880435,-824.46,0.00023178,9]
[334143697,1722793880444,-889.6,0.00023178,9]
[334143698,1722793880453,-810.16,0.00023178,9]
[334143699,1722793880463,-500.0,0.00023178,9]
[334143700,1722793880473,-686.39,0.00023178,9]
[334143701,1722793880483,-1177.55,0.00023178,9]
[334143702,1722793880492,-1494.14,0.00023178,9]
[334143703,1722793880502,-500.0,0.00023178,9]
[334143704,1722793880517,-723.47,0.00023178,9]
[334143705,1722793880527,-552.80998123,0.00023178,9]
[334143706,1722793880537,-151.0,0.00023178,7]
[334143707,1722793880546,-151.0,0.00023178,7]
[334143708,1722793880556,-214.768247,0.00023178,7]
[334143709,1722793880566,-214.768247,0.00023178,7]
[334143710,1722793880575,-8055.55,0.00023178,9]
[334143711,1722793880585,-815.5,0.00023178,9]
[334143712,1722793880594,-500.0,0.00023178,9]
[334143713,1722793880603,-500.0,0.00023178,9]
[334143714,1722793880612,-500.0,0.00023178,9]
[334143715,1722793880621,-500.0,0.00023178,9]
[334143716,1722793880630,-500.0,0.00023178,9]
[334143717,1722793880639,-1680.09,0.00023178,9]
[334143718,1722793880648,-214.768247,0.00023178,7]
[334143719,1722793880658,-214.768247,0.00023178,7]
[334143720,1722793880667,-552.75,0.00023178,9]
[334143721,1722793880678,-539.85,0.00023178,9]
[334143722,1722793880687,-500.0,0.00023178,9]
[334143723,1722793880697,-530.04,0.00023178,9]
[334143724,1722793880707,-500.0,0.00023178,9]
[334143725,1722793880717,-500.0,0.00023178,9]
[334143726,1722793880727,-500.0,0.00023178,9]
[334143727,1722793880737,-702.68,0.00023178,9]
[334143728,1722793880750,-500.0,0.00023178,9]
[334143729,1722793880764,-1066.04,0.00023178,9]
[334143730,1722793880773,-500.0,0.00023178,9]
[334143731,1722793880785,-591.76,0.00023178,9]
[334143732,1722793880794,-800.55,0.00023178,9]
[334143733,1722793880804,-500.0,0.00023178,9]
[334143734,1722793880814,-909.99,0.00023178,9]
[334143735,1722793880824,-200.0,0.00023178,7]
[334143736,1722793880834,-500.0,0.00023178,9]
[334143737,1722793880844,-500.0,0.00023178,9]
[334143738,1722793880854,-500.0,0.00023178,9]
[334143739,1722793880863,-500.0,0.00023178,9]
[334143740,1722793880873,-720.81,0.00023178,9]
[334143741,1722793880883,-500.0,0.00023178,9]
[334143742,1722793880894,-500.0,0.00023178,9]
[334143743,1722793880903,-1192.14,0.00023178,9]
[334143744,1722793880913,-1148.81,0.00023178,9]
[334143745,1722793880923,-500.0,0.00023178,9]
[334143746,1722793880933,-500.0,0.00023178,9]
[334143747,1722793880943,-502.66,0.00023178,9]
[334143748,1722793880952,-820.9,0.00023178,9]
[334143749,1722793880962,-518.02,0.00023178,9]
[334143750,1722793880972,-3642.15,0.00023178,9]
[334143751,1722793880982,-500.0,0.00023178,9]
[334143752,1722793880992,-946.55,0.00023178,9]
[334143753,1722793881002,-500.0,0.00023178,9]
[334143754,1722793881020,-386.53376723,0.00023178,9]
[334143755,1722793881030,-500.0,0.00023178,9]
[334143756,1722793881040,-528.95,0.00023178,9]
[334143757,1722793881050,-1603.91,0.00023178,9]
[334143758,1722793881060,-500.0,0.00023178,9]
[334143759,1722793881069,-500.0,0.00023178,9]
[334143760,1722793881079,-1805.42,0.00023178,9]
[334143761,1722793881088,-500.0,0.00023178,9]
[334143762,1722793881099,-2125.37,0.00023178,9]
[334143763,1722793881108,-501.84045956,0.00023178,9]
[334143764,1722793881118,-829.66,0.00023178,9]
[334143765,1722793881127,-874.1,0.00023178,9]
[334143766,1722793881137,-500.0,0.00023178,9]
[334143767,1722793881146,-500.0,0.00023178,9]
[334143768,1722793881155,-1176.16,0.00023178,9]
[334143769,1722793881163,-500.0,0.00023178,9]
[334143770,1722793881172,-500.0,0.00023178,9]
[334143771,1722793881184,-500.0,0.00023178,9]
[334143772,1722793881194,-789.04,0.00023178,9]
[334143773,1722793881203,-500.0,0.00023178,9]
[334143774,1722793881213,-500.0,0.00023178,9]
[334143775,1722793881223,-500.0,0.00023178,9]
[334143776,1722793881232,-500.0,0.00023178,9]
[334143777,1722793881242,-1150.29,0.00023178,9]
[334143778,1722793881251,-1178.44,0.00023178,9]
[334143779,1722793881273,-1074.2,0.00023178,9]
[334143780,1722793881283,-500.0,0.00023178,9]
[334143781,1722793881293,-500.0,0.00023178,9]
[334143782,1722793881303,-500.0,0.00023178,9]
[334143783,1722793881313,-583.23,0.00023178,9]
[334143784,1722793881323,-500.0,0.00023178,9]
[334143785,1722793881332,-2682.29,0.00023178,9]
[334143786,1722793881342,-4128.36,0.00023178,9]
[334143787,1722793881352,-359.6,0.00023178,9]
[334143788,1722793881362,-986.96,0.00023178,9]
[334143789,1722793881372,-654.0,0.00023178,9]
[334143790,1722793881382,-625.66,0.00023178,9]
[334143791,1722793881395,-500.0,0.00023178,9]
[334143792,1722793881405,-500.0,0.00023178,9]
[334143793,1722793881415,-572.4,0.00023178,9]
[334143794,1722793881424,-500.0,0.00023178,9]
[334143795,1722793881434,-663.93,0.00023178,9]
[334143796,1722793881445,-1047.34,0.00023178,9]
[334143797,1722793881455,-500.0,0.00023178,9]
[334143798,1722793881465,-500.0,0.00023178,9]
[334143799,1722793881475,-500.0,0.00023178,9]
[334143800,1722793881485,-436.81,0.00023178,9]
[334143801,1722793881495,-559.65,0.00023178,9]
[334143802,1722793881504,-2555.28,0.00023178,9]
[334143803,1722793881520,-1353.29,0.00023178,9]
[334143804,1722793881530,-500.0,0.00023178,9]
[334143805,1722793881540,-620.84,0.00023178,9]
[334143806,1722793881550,-1214.04,0.00023178,9]
[334143807,1722793881560,-315.07438305,0.00023178,9]
[334143808,1722793881570,-500.0,0.00023178,9]
[334143809,1722793881580,-500.0,0.00023178,9]
[334143810,1722793881590,-1467.96,0.00023178,9]
[334143811,1722793881600,-825.95,0.00023178,9]
[334143812,1722793881609,-500.0,0.00023178,9]
[334143813,1722793881619,-500.0,0.00023178,9]
[334143814,1722793881629,-793.93,0.00023178,9]
[334143815,1722793881638,-500.0,0.00023178,9]
[334143816,1722793881648,-500.0,0.00023178,9]
[334143817,1722793881658,-500.0,0.00023178,9]
[334143818,1722793881667,-500.0,0.00023178,9]
[334143819,1722793881677,-500.0,0.00023178,9]
[334143820,1722793881687,-500.0,0.00023178,9]
[334143821,1722793881696,-500.0,0.00023178,9]
[334143822,1722793881706,-1434.28,0.00023178,9]
[334143823,1722793881715,-1102.08,0.00023178,9]
[334143824,1722793881727,-500.0,0.00023178,9]
[334143825,1722793881737,-830.67,0.00023178,9]
[334143826,1722793881750,-837.82,0.00023178,9]
[334143827,1722793881765,-1054.27,0.00023178,9]
[334143828,1722793881774,-500.0,0.00023178,9]
[334143829,1722793881784,-771.44,0.00023178,9]
[334143830,1722793881793,-500.0,0.00023178,9]
[334143831,1722793881803,-703.02,0.00023178,9]
[334143832,1722793881814,-1468.65,0.00023178,9]
[334143833,1722793881825,-500.0,0.00023178,9]
[334143834,1722793881835,-592.73,0.00023178,9]
[334143835,1722793881845,-500.0,0.00023178,9]
[334143836,1722793881854,-1140.89,0.00023178,9]
[334143837,1722793882047,-500.0,0.00023178,9]
[334143838,1722793882070,-500.0,0.00023178,9]
[334143839,1722793882080,-2157.01,0.00023178,9]
[334143840,1722793882090,-500.0,0.00023178,9]
[334143841,1722793882100,-500.0,0.00023178,9]
[334143842,1722793882110,-972.42,0.00023178,9]
[334143843,1722793882120,-1517.51,0.00023178,9]
[334143844,1722793882130,-500.0,0.00023178,9]
[334143845,1722793882140,-1516.1,0.00023178,9]
[334143846,1722793882149,-500.0,0.00023178,9]
[334143847,1722793882159,-500.0,0.00023178,9]
[334143848,1722793882169,-1017.16,0.00023178,9]
[334143849,1722793882179,-500.0,0.00023178,9]
[334143850,1722793882189,-151.0,0.00023178,7]
[334143851,1722793882198,-1138.68,0.00023178,9]
[334143852,1722793882208,-151.0,0.00023178,7]
[334143853,1722793882217,-1278.49,0.00023178,9]
[334143854,1722793882227,-545.49,0.00023178,9]
[334143855,1722793882236,-500.93822598,0.00023178,9]
[334143856,1722793882246,-895.15,0.00023178,9]
[334143857,1722793882255,-830.33,0.00023178,9]
[334143858,1722793882274,-500.0,0.00023178,9]
[334143859,1722793882285,-201.781964,0.00023178,7]
[334143860,1722793882294,-504.56983707,0.00023178,9]
[334143861,1722793882303,-500.0,0.00023178,9]
[334143862,1722793882313,-927.93,0.00023178,9]
[334143863,1722793882322,-1102.09,0.00023178,9]
[334143864,1722793882332,-898.46,0.00023178,9]
[334143865,1722793882342,-1000.0,0.00023178,9]
[334143866,1722793882352,-2271.81,0.00023178,9]
[334143867,1722793882362,-727.31,0.00023178,9]
[334143868,1722793882372,-500.0,0.00023178,9]
[334143869,1722793882382,-758.35,0.00023178,9]
[334143870,1722793882392,-500.0,0.00023178,9]
[334143871,1722793882403,-500.0,0.00023178,9]
[334143872,1722793882413,-500.0,0.00023178,9]
[334143873,1722793882424,-1044.8,0.00023178,9]
[334143874,1722793882434,-769.7,0.00023178,9]
[334143875,1722793882444,-500.0,0.00023178,9]
[334143876,1722793882454,-688.96,0.00023178,9]
[334143877,1722793882465,-500.0,0.00023178,9]
[334143878,1722793882475,-500.73156535,0.00023178,2]
[334143879,1722793882486,-969.44,0.00023178,9]
[334143880,1722793882499,-500.0,0.00023178,9]
[334143881,1722793882510,-151.0,0.00023178,7]
[334143882,1722793882520,-151.0,0.00023178,7]
[334143883,1722793882535,-500.0,0.00023178,9]
[334143884,1722793882546,-697.4,0.00023178,9]
[334143885,1722793882556,-4278.87,0.00023178,9]
[334143886,1722793882566,-500.0,0.00023178,9]
[334143887,1722793882576,-936.72,0.00023178,9]
[334143888,1722793882586,-242.566115,0.00023178,7]
[334143889,1722793882596,-500.0,0.00023178,9]
[334143890,1722793882606,-1697.64,0.00023178,9]
[334143891,1722793882615,-500.0,0.00023178,9]
[334143892,1722793882624,-500.0,0.00023178,9]
[334143893,1722793882634,-500.0,0.00023178,9]
[334143894,1722793882644,-500.0,0.00023178,9]
[334143895,1722793882654,-500.0,0.00023178,9]
[334143896,1722793882664,-500.0,0.00023178,9]
[334143897,1722793882674,-1496.06,0.00023178,9]
[334143898,1722793882683,-500.0,0.00023178,9]
[334143899,1722793882693,-500.0,0.00023178,9]
[334143900,1722793882703,-935.37,0.00023178,9]
[334143901,1722793882713,-500.0,0.00023178,9]
[334143902,1722793882724,-1311.35,0.00023178,9]
[334143903,1722793882733,-500.0,0.00023178,9]
[334143904,1722793882747,-583.39,0.00023178,9]
[334143905,1722793882756,-500.0,0.00023178,9]
[334143906,1722793882778,-826.34,0.00023178,9]
[334143907,1722793882787,-905.47,0.00023178,9]
[334143908,1722793882797,-1346.08,0.00023178,9]
[334143909,1722793882810,-500.0,0.00023178,9]
[334143910,1722793882821,-929.89,0.00023178,9]
[334143911,1722793882831,-2482.59,0.00023178,9]
[334143912,1722793882841,-591.08,0.00023178,9]
[334143913,1722793882850,-500.0,0.00023178,9]
[334143914,1722793882860,-501.55717133,0.00023178,9]
[334143915,1722793882870,-180.0,0.00023205,2]
[334143916,1722793882881,-152.0,0.0002324,3]
[334143917,1722793882891,-665.09726624,0.00023242,2]
[334143918,1722793882901,-952.11,0.00023259,9]
[334143919,1722793882910,-952.11,0.00023259,9]
[334143920,1722793882920,-1491.15,0.00023259,9]
[334143921,1722793882930,-1491.15,0.00023259,9]
[334143922,1722793882939,-500.0,0.0002326,9]
[334143923,1722793882948,-500.0,0.0002326,9]
[334143924,1722793882958,-550.0,0.0002326,9]
[334143925,1722793882967,-500.0,0.0002326,9]